[Event "73rd Greek Championship 2024"]
[Site "Thessaloniki"]
[Date "2024.12.05"]
[Round "4.5"]
[White "Mitsis, Georgios"]
[Black "Kourkoulos-Arditis, Stamatis"]
[Result "0-1"]
[Annotator "TA"]
[ECO "E92"]
[WhiteElo "2383"]
[BlackElo "2575"]
[PlyCount "204"]
[EventDate "2024.12.02"]
[EventType "tourn"]
[EventCountry "GRE"]
[SourceTitle "playchess.com"]
[Source "ChessBase"]
[SourceQuality "1"]
[TimeControl "40/5400+30:1800+30"]

{[%evp 126,204,-8,-14,-8,-8,-8,-8,-8,-48,-52,-164,-171,-418,-427,-495,-480,-673,-662,-490,-314,-429,-171,-171,-171,-171,-171,-171,-171,-171,-164,-287,-129,-211,0,-129,0,-204,-172,-189,-172,-405,-408,-429,0,-415,-443,-678,-676,-445,-614,-694,0,-400,0,-757,-757,-1272,-1168,-1400,0,-930,0,-994,-987,-2532,-979,-935,-914,-892,-848,-29957,-29960,-8514,-5885,-29977,-29978,-29978,-29979,-29985,-29985]} 1. d4 {[%emt 0:00:04]} Nf6 {[%emt 0:00:05]} 2. Nf3 {[%emt 0:00:09]} g6 {[%emt 0:00:08]} 3. c4 {[%emt 0:00:09]} Bg7 {[%emt 0:00:05]} 4. Nc3 {[%emt 0:00:07]} d6 {[%emt 0:00:20]} 5. e4 {[%emt 0:00:09]} O-O {[%emt 0:00:06]} 6. Be2 {[%emt 0:00:12]} e5 {[%emt 0:00:07]} 7. Be3 {[%emt 0:00:15]} Ng4 {[%emt 0:00:41]} 8. Bg5 {[%emt 0:00:30]} f6 {[%emt 0:00:05]} 9. Bh4 {[%emt 0:00:11]} Nc6 {[%emt 0:00:17]} 10. d5 {[%emt 0:00:12]} Ne7 {[%emt 0:00:06]} 11. Nd2 {[%emt 0:00:18]} f5 {[%emt 0:00:41]} 12. Bxg4 {[%emt 0:01:21]} fxg4 {[%emt 0:00:05]} 13. Bg5 {[%emt 0:00:10] E92: King's Indian: Classical: 6 Be2 e5: 7 dxe5, 7 Be3 and Petrosian System without 7...Nbd7.} h6 {[%emt 0:00:17]} 14. Be3 {[%emt 0:00:07]} c5 {[%emt 0:00:15]} 15. a4 {[%emt 0:06:27]} g5 $146 {[%emt 0:01:47]} ({Predecessor:} 15... a5 16. Nb5 g5 17. Qc2 Ng6 18. g3 Nf4 19. Rg1 b6 20. Nb3 Nh3 21. Rf1 Rf7 {0-1 Bacallao Alonso,Y (2590)-Clarke,B (2486) POR-chT Sao Joao da Madeira 2023 (7.5)}) 16. a5 {[%emt 0:01:45]} Ng6 {[%emt 0:11:11]} 17. O-O {[%emt 0:01:21]} Nf4 {[%emt 0:14:57]} 18. b4 {[%emt 0:06:14]} cxb4 {[%emt 0:00:33]} 19. Nb5 {[%emt 0:32:54]} a6 {[%emt 0:02:46]} 20. Bb6 {[%emt 0:00:34]} Qe7 {[%emt 0:00:25]} 21. Nc7 {[%emt 0:00:14]} Rb8 {[%emt 0:00:05]} 22. c5 {[%emt 0:06:28]} dxc5 {[%emt 0:05:31]} 23. Nc4 {[%emt 0:05:12]} Bd7 {[%emt 0:03:07]} 24. Ne3 {[%emt 0:11:40]} Rbc8 {[%emt 0:27:08]} 25. d6 {[%emt 0:08:46]} Qf7 {[%emt 0:02:42]} 26. Rc1 {[%emt 0:00:29]} Qg6 {[%emt 0:03:10]} 27. Rc4 {[%emt 0:04:40]} Kh7 {[%emt 0:05:24]} 28. Bxc5 {[%emt 0:01:28]} b3 {[%emt 0:02:11]} 29. Ba3 {[%emt 0:01:47]} Rf7 {[%emt 0:02:35]} 30. Re1 {[%emt 0:07:59]} Rcf8 {[%emt 0:06:55]} 31. Qxb3 {[%emt 0:00:40]} Nxg2 {[%emt 0:01:33]} 32. Nxg2 {[%emt 0:00:27]} Rxf2 {[%emt 0:00:04]} 33. Rc2 {[%emt 0:02:31]} Qf6 {[%emt 0:02:16]} 34. Qb1 {[%emt 0:01:21]} g3 {[%emt 0:00:16]} 35. hxg3 {[%emt 0:00:10]} Qf3 {[%emt 0:01:00]} 36. Rxf2 {[%emt 0:00:50]} Qxf2+ {[%emt 0:00:05]} 37. Kh2 {[%emt 0:00:12]} Rf3 {[%emt 0:00:45]} 38. Qb2 {[%emt 0:00:54]} Qxg3+ {[%emt 0:01:04]} 39. Kg1 {[%emt 0:00:04]} Rxa3 {[%emt 0:00:13]} 40. Nd5 {[%emt 0:00:00]} Rf3 {[%emt 0:00:00]} 41. Nde3 {[%emt 0:04:29]} h5 {[%emt 0:15:35]} 42. Nf1 {[%emt 0:03:39]} Qh3 {[%emt 0:00:25]} 43. Qxb7 {[%emt 0:01:14]} Bb5 {[%emt 0:11:11]} 44. Qe7 {[%emt 0:03:41]} g4 {[%emt 0:02:01]} 45. Nfe3 {[%emt 0:08:44]} Qg3 {[%emt 0:09:35]} 46. Nd1 {[%emt 0:03:38]} Rf8 {[%emt 0:02:39]} 47. Qg5 {[%emt 0:01:45]} Qh3 {[%emt 0:00:45]} 48. Nf2 {[%emt 0:00:51]} Qf3 {[%emt 0:00:41]} 49. Qxh5+ {[%emt 0:00:23]} Kg8 {[%emt 0:00:05]} 50. Nxg4 {[%emt 0:01:07]} Bd7 {[%emt 0:00:49]} 51. Nh6+ {[%emt 0:00:27]} Bxh6 {[%emt 0:00:18]} 52. Qxh6 {[%emt 0:00:06]} Qf2+ {[%emt 0:00:07]} 53. Kh2 {[%emt 0:00:04]} Rf6 {[%emt 0:01:06]} 54. Qh5 {[%emt 0:04:41]} Kg7 {[%emt 0:00:38]} 55. Re2 {[%emt 0:03:26]} Qd4 {[%emt 0:00:30]} 56. Qg5+ {[%emt 0:00:17]} Kf7 {[%emt 0:00:06]} 57. Re3 {[%emt 0:00:43]} Qxd6 {[%emt 0:00:15]} 58. Qh5+ {[%emt 0:00:31]} Ke7 {[%emt 0:00:07]} 59. Qh4 {[%emt 0:00:31]} Ke8 {[%emt 0:00:25]} 60. Qh8+ {[%emt 0:00:22]} Rf8 {[%emt 0:00:30]} 61. Qh5+ {[%emt 0:00:16]} Kd8 {[%emt 0:00:08]} 62. Qg5+ {[%emt 0:00:31]} Kc8 {[%emt 0:00:46]} 63. Rc3+ {[%emt 0:00:39]} Kb8 {[%emt 0:00:14]} 64. Qg7 {[%emt 0:00:12]} Rc8 {[%emt 0:01:35]} (64... Rf1 {looks sharper.} 65. Qg8+ Kb7 66. Rb3+ Ka7) 65. Rxc8+ {[%emt 0:00:18]} Bxc8 {[%emt 0:00:06]} (65... Kxc8 66. Qg5 $14) 66. Qg5 {[%emt 0:01:21]} Bb7 {[%emt 0:00:56]} 67. Qe3 {[%emt 0:00:31]} Qb4 {[%emt 0:00:22]} 68. Qg5 {[%emt 0:00:30]} (68. Kg3 $1 $15) 68... Qxa5 $19 {[%emt 0:00:18]} (68... Bxe4 69. Qxe5+ Kb7 70. Nf4 $11) ({Resist} 68... Qxe4 69. Qd8+ Bc8 70. Qd6+ Ka8 71. Qd8 $11) 69. Qe7 $2 {[%emt 0:00:31]} (69. Qg8+ {was called for.} Ka7 70. Qc4) 69... Bxe4 $19 {[%emt 0:00:38]} 70. Qe8+ {[%emt 0:00:10]} Ka7 {[%emt 0:00:12]} 71. Qd7+ {[%emt 0:00:12]} (71. Qf7+ $142 Bb7 72. Qf2+ Qb6 73. Qd2) 71... Bb7 $19 {[%emt 0:00:05]} 72. Ne3 {[%emt 0:00:36]} Qe1 {[%emt 0:00:52]} 73. Nf5 {[%emt 0:00:15]} Qf2+ $2 {[%emt 0:01:20]} (73... Qc3 74. Qd1 Qf3) 74. Kh3 $19 {[%emt 0:00:05]} Qf3+ {[%emt 0:00:20]} 75. Kh4 {[%emt 0:00:05]} Qc6 {[%emt 0:00:41]} 76. Qe7 {[%emt 0:00:07]} e4 {[%emt 0:00:30]} 77. Nd6 {[%emt 0:00:17]} a5 {[%emt 0:00:20]} 78. Qe5 {[%emt 0:01:22]} (78. Nxb7 $142 Qxb7 79. Qe5) 78... a4 {[%emt 0:00:33]} (78... Qd5 $19 {has better winning chances.} 79. Qe7 Kb6) 79. Qd4+ {[%emt 0:01:23]} (79. Qa5+ $17 {was necessary.} Ba6 80. Qd2) 79... Kb8 $2 {[%emt 0:00:32]} ({Black should try} 79... Ka6 $19 {White must now prevent ...Qc2.} 80. Qb4 Ba8) 80. Qe5 {[%emt 0:00:14] [#]} (80. Qb4 $1 $11) 80... Ka7 {[%emt 0:00:31]} (80... e3 $1 $17 81. Qxe3 Qxd6 82. Qe8+ Kc7 83. Qxa4 Qf6+ 84. Kg4 Qg7+ 85. Kf4 Qf6+ (85... Qh6+ 86. Kg3 $17) 86. Kg4 Qg7+ 87. Kh4 Qh6+ 88. Kg4 Qg6+ 89. Kh4 Qh6+ 90. Kg4 Qg7+) 81. Qd4+ $1 $19 {[%emt 0:00:05]} Ka6 {[%emt 0:00:15]} 82. Qb4 {[%emt 0:00:33]} Ba8 {[%emt 0:00:28]} 83. Nf5 $2 {[%emt 0:01:33]} (83. Kg3) 83... Qb5 $19 {[%emt 0:00:57]} 84. Qd6+ {[%emt 0:00:16]} Ka5 $2 {[%emt 0:00:30]} (84... Qb6 $19 {( -> ...Qxd6)} 85. Qf8 Bc6) 85. Kg5 $2 {[%emt 0:00:32][%mdl 8192]} (85. Qd2+ $11 {and White is okay.} Ka6 86. Qd6+ Qb6 87. Qf8) 85... Qd5 {[%emt 0:00:29]} 86. Qe7 {[%emt 0:00:25]} (86. Qc7+ $142 Ka6 87. Qc3) 86... Bc6 $19 {[%emt 0:00:26]} 87. Kf4 {[%emt 0:00:06]} Qd2+ {[%emt 0:00:06]} 88. Ke5 {[%emt 0:00:27]} Qd5+ {[%emt 0:00:14]} 89. Kf4 $1 {[%emt 0:00:05]} Qd2+ {[%emt 0:00:22]} (89... Ka6 $142 90. Qa3 Qd2+ 91. Ne3 Kb5) 90. Ke5 $19 {[%emt 0:00:05]} Kb6 {[%emt 0:00:49]} 91. Nd6 {[%emt 0:00:52]} Qc3+ {[%emt 0:00:27]} 92. Kf4 {[%emt 0:00:11]} Qd2+ {[%emt 0:00:33]} 93. Ke5 $1 {[%emt 0:00:05]} Qc3+ {[%emt 0:00:27]} 94. Kf4 {[%emt 0:00:06]} a3 {[%emt 0:00:48]} 95. Qd8+ {[%emt 0:01:42]} Ka6 {[%emt 0:00:33]} (95... Kc5 $142 96. Nc8 a2 97. Qb6+ Kc4 (97... Kd5 $2 98. Qd8+ Kc5 99. Qb6+ Kc4 100. Qxc6+ Kb3 101. Qd5+ Kb2 102. Qb5+ Kc1 103. Qf1+ Kc2 104. Kxe4 $19) 98. Qxc6+ Kb3 99. Qb5+ Kc2 100. Qa4+ Kb2) 96. Qc8+ $19 {[%emt 0:00:16]} Ka5 {[%emt 0:00:06]} 97. Qc7+ {[%emt 0:00:50]} Ka4 {[%emt 0:00:09]} 98. Nxe4 {[%emt 0:00:53]} Qc1+ {[%emt 0:01:18]} 99. Ke5 {[%emt 0:00:05]} Qb2+ {[%emt 0:00:14]} 100. Kf4 {[%emt 0:00:11]} Qh2+ {[%emt 0:00:32]} 101. Ng3 {[%emt 0:00:05]} Qd2+ {[%emt 0:00:11]} 102. Kf5 {[%emt 0:00:44]} Qd7+ {[%emt 0:00:09]} 0-1

[Event "73rd Greek Championship 2024"]
[Site "Thessaloniki"]
[Date "2024.12.06"]
[Round "5.1"]
[White "Kourkoulos-Arditis, Stamatis"]
[Black "Patrelakis, Evaggelos"]
[Result "1-0"]
[Annotator "TA"]
[ECO "A13"]
[WhiteElo "2575"]
[BlackElo "2437"]
[PlyCount "119"]
[EventDate "2024.12.02"]
[EventType "tourn"]
[EventCountry "GRE"]
[SourceTitle "playchess.com"]
[Source "ChessBase"]
[SourceQuality "1"]
[TimeControl "40/5400+30:1800+30"]

{[%evp 16,118,0,0,5,0,0,0,7,14,9,6,6,4,11,4,13,4,16,14,27,22,39,8,39,37,32,41,51,46,51,45,56,43,49,45,53,52,52,56,53,53,60,62,56,33,41,39,37,39,46,28,31,32,47,19,40,40,45,34,50,0,32,33,65,19,327,327,319,319,310,308,294,294,29966,29967,29967,29968,29968,29969,29969,29970,29970,29971,29970,29972,29972,29972,29972,29973,29973,29974,29974,29975,29976,29976,29978,29979,29979,29980,29981,29981,29981,29982,29999]} 1. Nf3 {[%emt 0:00:07]} Nf6 {[%emt 0:02:53]} 2. c4 {[%emt 0:00:06]} e6 {[%emt 0:00:32]} 3. g3 {[%emt 0:00:10]} d5 {[%emt 0:00:34]} 4. Bg2 {[%emt 0:00:06]} dxc4 {[%emt 0:00:51]} 5. Qa4+ {[%emt 0:00:08]} Bd7 {[%emt 0:01:18]} 6. Qxc4 {[%emt 0:00:06] A13: English Opening: 1...e6.} c5 {[%emt 0:00:16]} 7. Ne5 {[%emt 0:00:11]} Qc8 {[%emt 0:00:16]} 8. Nc3 {[%emt 0:01:12]} Nc6 {[%emt 0:00:21]} 9. Nxd7 {[%emt 0:00:07]} Qxd7 {[%emt 0:00:07]} 10. a4 $5 {[%emt 0:00:31][%mdl 4] Leaves trodden paths.} Be7 {[%emt 0:03:17]} 11. a5 {[%emt 0:02:00]} Rc8 {[%emt 0:05:31]} 12. O-O {[%emt 0:00:46]} O-O {[%emt 0:03:14]} 13. d3 {[%emt 0:03:22]} h6 {[%emt 0:08:09]} 14. Be3 {[%emt 0:06:12]} Nd4 $146 {[%emt 0:19:10]} ({Predecessor:} 14... Rfd8 15. Rfc1 Nd5 16. Nxd5 exd5 17. Qb5 d4 18. Bd2 a6 19. Qb3 Bd6 20. Qd5 Rc7 {1-0 Bok,B (2596)-Makarian,R (2550) Julius Baer GenCup Pl/In rapid 2024 (8)}) 15. Qa4 {[%emt 0:04:49]} Rfd8 {[%emt 0:00:28]} 16. Rfc1 {[%emt 0:13:09]} b5 {[%emt 0:05:48]} 17. axb6 {[%emt 0:01:26]} axb6 {[%emt 0:00:10]} 18. Bxd4 {[%emt 0:05:41]} Qxd4 {[%emt 0:00:53]} 19. Qb5 {[%emt 0:10:21]} Qb4 {[%emt 0:20:05]} 20. Ra6 {[%emt 0:13:04]} c4 {[%emt 0:03:33]} 21. dxc4 {[%emt 0:02:07]} ({Reject} 21. Rxb6 Qxb5 22. Rxb5 cxd3 $11) 21... Rxc4 {[%emt 0:05:15]} 22. Rxb6 {[%emt 0:02:22]} Bc5 {[%emt 0:02:12]} 23. Qxb4 {[%emt 0:00:35]} Bxb4 {[%emt 0:00:10]} 24. e3 {[%emt 0:06:48]} Bxc3 {[%emt 0:02:08]} 25. bxc3 {[%emt 0:02:25]} Rdc8 {[%emt 0:03:26]} 26. Rb3 {[%emt 0:00:41]} Ne4 {[%emt 0:00:52]} 27. Bxe4 {[%emt 0:01:36]} Rxe4 {[%emt 0:00:03]} 28. Kf1 {[%emt 0:24:22]} Ra4 {[%emt 0:01:10]} 29. Rc2 {[%emt 0:00:00]} g5 {[%emt 0:01:49]} 30. h3 {[%emt 0:00:00]} Kg7 {[%emt 0:01:25]} 31. Ke2 {[%emt 0:00:00]} h5 {[%emt 0:00:34]} 32. Rb7 {[%emt 0:00:00]} Kg6 {[%emt 0:02:08]} 33. Rd7 {[%emt 0:00:00]} h4 {[%emt 0:03:11]} 34. g4 {[%emt 0:00:00]} f5 {[%emt 0:01:53]} 35. gxf5+ {[%emt 0:00:00]} exf5 {[%emt 0:00:57]} 36. Rd6+ {[%emt 0:00:00]} Kh5 {[%emt 0:00:16]} 37. Rb2 {[%emt 0:00:34]} g4 {[%emt 0:00:05]} 38. Rbb6 {[%emt 0:00:07]} (38. hxg4+ $14 Kxg4 39. Rg6+ Kh5 40. Rbb6) 38... Rh8 {[%emt 0:00:45]} 39. hxg4+ {[%emt 0:03:15]} Rxg4 {[%emt 0:00:03]} 40. Rf6 {[%emt 0:00:00]} (40. Rb5 $14) 40... h3 $2 {[%emt 0:00:00][%mdl 8192]} (40... Rg5 $1 $11) 41. Rxf5+ $18 {[%emt 0:07:13]} Kh4 {[%emt 0:07:43] [#]} 42. Rb1 $1 {[%emt 0:09:58]} Ra4 {[%emt 0:11:26]} 43. Kf3 {[%emt 0:01:52]} Rc4 {[%emt 0:07:08]} 44. Rf7 {[%emt 0:03:56]} Rxc3 $2 {[%emt 0:04:02]} (44... Kh5 $18 45. Rbb7 Rxc3 46. Rh7+ Rxh7 47. Rxh7+ Kg6 48. Rxh3 Kf7) 45. Rf4+ {[%emt 0:00:20]} Kh5 {[%emt 0:00:14]} 46. Rh1 {[%emt 0:00:31]} ({Not} 46. Kg3 Rcc8 47. Kxh3 Rcf8 $16) 46... Kg5 {[%emt 0:03:42]} 47. Rg1+ {[%emt 0:00:04]} Kh5 {[%emt 0:00:11]} 48. Rg3 {[%emt 0:00:16]} Rb8 {[%emt 0:00:09]} 49. Rxh3+ {[%emt 0:00:08]} Kg5 {[%emt 0:00:07]} 50. Rg3+ {[%emt 0:00:07]} Kh5 {[%emt 0:00:02]} 51. Kg2 {[%emt 0:04:52]} Rc1 {[%emt 0:00:59]} 52. Rfg4 {[%emt 0:01:02]} Ra8 {[%emt 0:01:33]} 53. Rg8 {[%emt 0:00:12]} Rxg8 {[%emt 0:00:14]} 54. Rxg8 {[%emt 0:00:03]} Rc3 {[%emt 0:02:25]} 55. Kf3 {[%emt 0:00:18]} Rc2 {[%emt 0:00:44]} 56. e4 {[%emt 0:00:04]} Rc3+ {[%emt 0:00:18]} 57. Kf4 {[%emt 0:00:05]} Rc2 {[%emt 0:00:09]} 58. f3 {[%emt 0:00:08]} Rc4 {[%emt 0:00:19]} 59. Kf5 {[%emt 0:00:08]} Rxe4 {[%emt 0:00:05]} 60. Rh8# {[%emt 0:00:03]} 1-0

[Event "73rd Greek Championship 2024"]
[Site "Thessaloniki"]
[Date "2024.12.06"]
[Round "5.2"]
[White "Alexakis, Dimitris"]
[Black "Mitsis, Georgios"]
[Result "1/2-1/2"]
[Annotator "RC"]
[ECO "C26"]
[WhiteElo "2520"]
[BlackElo "2383"]
[PlyCount "134"]
[EventDate "2024.12.02"]
[EventType "tourn"]
[EventCountry "GRE"]
[SourceTitle "playchess.com"]
[Source "ChessBase"]
[SourceQuality "1"]
[TimeControl "40/5400+30:1800+30"]

1. e4 {[%emt 0:03:23]} e5 {[%emt 0:00:13]} 2. Nc3 {[%emt 0:01:19]} Nf6 {[%emt 0:00:16]} 3. g3 {[%emt 0:00:12]} d5 {[%emt 0:15:41]} 4. exd5 {[%emt 0:00:19]} Nxd5 {[%emt 0:00:10]} 5. Bg2 {[%emt 0:00:12]} Ne7 {[%emt 0:03:13]} 6. Nf3 {[%emt 0:07:43]} Nbc6 {[%emt 0:00:57]} 7. O-O {[%emt 0:08:23]} Nf5 {[%emt 0:03:20]} 8. Re1 {[%emt 0:24:50]} f6 {[%emt 0:01:18]} 9. d4 {[%emt 0:04:44]} Nfxd4 {[%emt 0:42:46]} 10. Nxd4 {[%emt 0:05:29]} Nxd4 {[%emt 0:00:06]} 11. Be3 {[%emt 0:02:09]} Ne6 {[%emt 0:02:52]} 12. Qxd8+ {[%emt 0:04:27]} Kxd8 {[%emt 0:00:08]} 13. Rad1+ {[%emt 0:01:00]} Bd6 {[%emt 0:00:12]} 14. Ne4 {[%emt 0:17:07]} Ke7 {[%emt 0:00:43]} 15. c4 {[%emt 0:11:26]} Bb4 {[%emt 0:08:18]} 16. Rf1 {[%emt 0:01:22]} c6 {[%emt 0:01:19]} 17. f4 {[%emt 0:01:14]} exf4 {[%emt 0:01:27]} 18. gxf4 {[%emt 0:00:09]} f5 {[%emt 0:00:33]} 19. a3 {[%emt 0:00:51]} Ba5 {[%emt 0:02:22]} 20. Nd6 {[%emt 0:00:42]} g6 {[%emt 0:01:55]} 21. c5 {[%emt 0:00:19]} Kf6 {[%emt 0:08:34]} 22. b4 {[%emt 0:01:37]} Bc7 {[%emt 0:00:05]} 23. Bc1 {[%emt 0:01:52]} Rd8 {[%emt 0:00:17]} 24. Bb2+ {[%emt 0:00:06]} Ke7 {[%emt 0:00:05]} 25. Be5 {[%emt 0:00:04]} a5 {[%emt 0:02:26]} 26. Rfe1 {[%emt 0:00:03]} axb4 {[%emt 0:00:35]} 27. axb4 {[%emt 0:00:02]} Bxd6 {[%emt 0:00:15]} 28. Bxd6+ {[%emt 0:01:42]} Kf7 {[%emt 0:00:06]} 29. b5 {[%emt 0:00:36]} Bd7 {[%emt 0:01:16]} 30. b6 {[%emt 0:00:21]} Re8 {[%emt 0:02:46]} 31. Ra1 {[%emt 0:00:52]} Rxa1 {[%emt 0:00:25]} 32. Rxa1 {[%emt 0:00:02]} Bc8 {[%emt 0:00:34]} 33. Ra7 {[%emt 0:00:32]} Nd8 {[%emt 0:01:03]} 34. Ra8 {[%emt 0:00:53]} Ne6 {[%emt 0:00:04]} 35. h4 {[%emt 0:01:15]} Nd4 {[%emt 0:00:16]} 36. Bf1 {[%emt 0:00:22]} Ke6 {[%emt 0:01:22]} 37. Kf2 {[%emt 0:00:42]} Kd7 {[%emt 0:00:20]} 38. Ra4 {[%emt 0:00:31]} Nb5 {[%emt 0:00:27]} 39. Be5 {[%emt 0:00:21]} Ke7 {[%emt 0:00:20]} 40. Ra8 {[%emt 0:00:00]} Be6 {[%emt 0:00:00]} 41. Ra1 {[%emt 0:15:05]} Bd5 {[%emt 0:04:06]} 42. h5 {[%emt 0:06:19]} Be4 {[%emt 0:05:02]} 43. h6 {[%emt 0:00:55]} Bd5 {[%emt 0:12:30]} 44. Bd3 {[%emt 0:02:46]} Ke6 {[%emt 0:00:53]} 45. Ke3 {[%emt 0:03:50]} Rd8 {[%emt 0:00:22]} 46. Bb2 {[%emt 0:02:29]} Re8 {[%emt 0:00:36]} 47. Kf2 {[%emt 0:00:55]} Rc8 {[%emt 0:01:14]} 48. Kg3 {[%emt 0:00:56]} Kf7 {[%emt 0:00:29]} 49. Kh4 {[%emt 0:00:29]} Re8 {[%emt 0:00:11]} 50. Be5 {[%emt 0:00:28]} Rc8 {[%emt 0:00:41]} 51. Kg5 {[%emt 0:00:48]} Ke6 {[%emt 0:01:27]} 52. Re1 {[%emt 0:00:26]} Kf7 {[%emt 0:00:05]} 53. Bd6 {[%emt 0:01:09]} Re8 {[%emt 0:03:41]} 54. Rxe8 {[%emt 0:00:11]} Kxe8 {[%emt 0:00:07]} 55. Kf6 {[%emt 0:00:41]} Kd7 {[%emt 0:00:09]} 56. Be5 {[%emt 0:00:30]} Ke8 {[%emt 0:00:15]} 57. Kg7 {[%emt 0:01:04]} Ke7 {[%emt 0:00:08]} 58. Bf6+ {[%emt 0:00:34]} Ke8 {[%emt 0:00:26]} 59. Kxh7 {[%emt 0:00:37]} Kf7 {[%emt 0:00:06]} 60. Be5 {[%emt 0:00:27]} Be6 {[%emt 0:00:24]} 61. Bb2 {[%emt 0:00:22]} Bd5 {[%emt 0:00:14]} 62. Be2 {[%emt 0:00:30]} Be6 {[%emt 0:00:17]} 63. Bf3 {[%emt 0:00:08]} Bd7 {[%emt 0:00:23]} 64. Bg2 {[%emt 0:00:10]} Bc8 {[%emt 0:00:12]} 65. Bh1 {[%emt 0:01:07]} Bd7 {[%emt 0:00:06]} 66. Bf3 {[%emt 0:00:25]} Bc8 {[%emt 0:00:06]} 67. Be2 {[%emt 0:00:46]} Be6 {[%emt 0:00:07]} 1/2-1/2

[Event "73rd Greek Championship 2024"]
[Site "Thessaloniki"]
[Date "2024.12.06"]
[Round "5.3"]
[White "Tsaknakis, Zisis"]
[Black "Stamatiou, Rodolfos"]
[Result "1-0"]
[Annotator "RC"]
[ECO "B30"]
[WhiteElo "2259"]
[BlackElo "2308"]
[PlyCount "97"]
[EventDate "2024.12.02"]
[EventType "tourn"]
[EventCountry "GRE"]
[SourceTitle "playchess.com"]
[Source "ChessBase"]
[SourceQuality "1"]
[TimeControl "40/5400+30:1800+30"]

1. e4 {[%emt 0:00:41]} c5 {[%emt 0:00:26]} 2. Nf3 {[%emt 0:00:10]} Nc6 {[%emt 0:01:27]} 3. Bb5 {[%emt 0:02:25]} Nf6 {[%emt 0:00:18]} 4. Nc3 {[%emt 0:05:37]} Nd4 {[%emt 0:05:31]} 5. e5 {[%emt 0:04:12]} Nxb5 {[%emt 0:00:12]} 6. Nxb5 {[%emt 0:01:28]} Nd5 {[%emt 0:01:53]} 7. Ng5 {[%emt 0:06:02]} f6 {[%emt 0:14:03]} 8. Qh5+ {[%emt 0:05:37]} g6 {[%emt 0:00:06]} 9. Qf3 {[%emt 0:00:03]} fxg5 {[%emt 0:10:28]} 10. Qxd5 {[%emt 0:00:03]} Qb6 {[%emt 0:02:27]} 11. a4 {[%emt 0:12:07]} Bg7 {[%emt 0:03:07]} 12. d4 {[%emt 0:02:33]} cxd4 {[%emt 0:05:10]} 13. a5 {[%emt 0:09:48]} Qc6 {[%emt 0:00:05]} 14. Qxc6 {[%emt 0:00:07]} bxc6 {[%emt 0:03:14]} 15. Nc7+ {[%emt 0:00:08]} Kf7 {[%emt 0:01:33]} 16. Nxa8 {[%emt 0:06:18]} Bxe5 {[%emt 0:02:44]} 17. a6 {[%emt 0:04:14]} d5 {[%emt 0:07:09]} 18. O-O {[%emt 0:07:17]} Bf5 {[%emt 0:02:43]} 19. f4 {[%emt 0:05:47]} Bd6 {[%emt 0:04:57]} 20. fxg5 {[%emt 0:01:22]} Kg7 {[%emt 0:02:42]} 21. Nb6 {[%emt 0:06:31]} axb6 {[%emt 0:00:54]} 22. Bf4 {[%emt 0:00:39]} e5 {[%emt 0:00:47]} 23. Bd2 {[%emt 0:01:42]} Ra8 {[%emt 0:07:13]} 24. g4 {[%emt 0:01:44]} Bd7 {[%emt 0:00:54]} 25. a7 {[%emt 0:02:05]} Be7 {[%emt 0:03:11]} 26. h3 {[%emt 0:04:58]} Bc8 {[%emt 0:03:37]} 27. Rfe1 {[%emt 0:01:51]} Bd6 {[%emt 0:01:41]} 28. Rf1 {[%emt 0:00:01]} Be7 {[%emt 0:00:12]} 29. Be1 {[%emt 0:02:09]} Bxg5 {[%emt 0:04:50]} 30. Bg3 {[%emt 0:00:03]} Bf6 {[%emt 0:01:22]} 31. g5 {[%emt 0:00:13]} Bxg5 {[%emt 0:00:04]} 32. Bxe5+ {[%emt 0:00:05]} Kg8 {[%emt 0:00:45]} 33. Kh2 {[%emt 0:04:20]} Bd8 {[%emt 0:02:54]} 34. Bxd4 {[%emt 0:00:45]} Bc7+ {[%emt 0:00:33]} 35. Kg2 {[%emt 0:00:15]} Bf5 {[%emt 0:00:12]} 36. c3 {[%emt 0:01:13]} c5 {[%emt 0:00:06]} 37. Be3 {[%emt 0:00:29]} Kf7 {[%emt 0:01:30]} 38. Bf4 {[%emt 0:00:24]} Bd8 {[%emt 0:00:58]} 39. Rfe1 {[%emt 0:01:23]} Be4+ {[%emt 0:01:47]} 40. Kg3 {[%emt 0:00:00]} Ke6 {[%emt 0:00:00]} 41. Rad1 {[%emt 0:07:27]} Bf6 {[%emt 0:09:44]} 42. c4 {[%emt 0:03:41]} Kf5 {[%emt 0:05:22]} 43. Bb8 {[%emt 0:01:24]} Bxb2 {[%emt 0:06:42]} 44. cxd5 {[%emt 0:01:24]} Be5+ {[%emt 0:03:09]} 45. Bxe5 {[%emt 0:03:00]} Kxe5 {[%emt 0:00:01]} 46. d6 {[%emt 0:00:50]} Kf5 {[%emt 0:00:29]} 47. d7 {[%emt 0:00:40]} Rd8 {[%emt 0:00:04]} 48. a8=Q {[%emt 0:01:11]} Bxa8 {[%emt 0:00:04]} 49. Re8 {[%emt 0:00:07]} 1-0

[Event "73rd Greek Championship 2024"]
[Site "Thessaloniki"]
[Date "2024.12.06"]
[Round "5.4"]
[White "Alexiadis, Hristos"]
[Black "Kalogridis, Antonios"]
[Result "1/2-1/2"]
[Annotator "RC"]
[ECO "A48"]
[WhiteElo "2341"]
[BlackElo "2333"]
[PlyCount "69"]
[EventDate "2024.12.02"]
[EventType "tourn"]
[EventCountry "GRE"]
[SourceTitle "playchess.com"]
[Source "ChessBase"]
[SourceQuality "1"]
[TimeControl "40/5400+30:1800+30"]

1. d4 {[%emt 0:03:17]} Nf6 {[%emt 0:00:02]} 2. Nf3 {[%emt 0:00:08]} g6 {[%emt 0:00:05]} 3. Bg5 {[%emt 0:00:20]} Bg7 {[%emt 0:00:05]} 4. c3 {[%emt 0:00:34]} O-O {[%emt 0:00:19]} 5. Nbd2 {[%emt 0:00:06]} h6 {[%emt 0:00:08]} 6. Bh4 {[%emt 0:00:04]} d6 {[%emt 0:00:10]} 7. e3 {[%emt 0:02:34]} Nc6 {[%emt 0:00:48]} 8. Bb5 {[%emt 0:04:44]} Bd7 {[%emt 0:03:15]} 9. O-O {[%emt 0:01:01]} Qe8 {[%emt 0:01:44]} 10. Be2 {[%emt 0:10:18]} e5 {[%emt 0:02:00]} 11. h3 {[%emt 0:01:34]} b6 {[%emt 0:08:58]} 12. Re1 {[%emt 0:01:45]} e4 {[%emt 0:09:41]} 13. Nh2 {[%emt 0:00:07]} Nh7 {[%emt 0:01:13]} 14. f3 {[%emt 0:08:50]} f5 {[%emt 0:01:17]} 15. fxe4 {[%emt 0:02:25]} fxe4 {[%emt 0:00:06]} 16. Qc2 {[%emt 0:12:46]} g5 {[%emt 0:02:13]} 17. Bg3 {[%emt 0:02:43]} Bf5 {[%emt 0:03:47]} 18. Rf1 {[%emt 0:02:06]} Kh8 {[%emt 0:02:24]} 19. Rf2 {[%emt 0:14:10]} Ne7 {[%emt 0:02:03]} 20. Nhf1 {[%emt 0:07:31]} h5 {[%emt 0:12:04]} 21. Bh2 {[%emt 0:00:10]} h4 {[%emt 0:00:05]} 22. g4 {[%emt 0:07:42]} Bg6 {[%emt 0:02:53]} 23. Rxf8+ {[%emt 0:00:30]} Qxf8 {[%emt 0:00:10]} 24. Ba6 {[%emt 0:01:20]} Rb8 {[%emt 0:03:40]} 25. a4 {[%emt 0:02:32]} Qf7 {[%emt 0:00:35]} 26. Re1 {[%emt 0:02:26]} Rf8 {[%emt 0:02:39]} 27. Re2 {[%emt 0:00:39]} Qe6 {[%emt 0:04:12]} 28. Rf2 {[%emt 0:01:52]} Nf6 {[%emt 0:02:43]} 29. Bc4 {[%emt 0:01:24]} Qd7 {[%emt 0:00:46]} 30. Qb3 {[%emt 0:00:17]} a5 {[%emt 0:05:15]} 31. Bb5 {[%emt 0:02:41]} Qc8 {[%emt 0:00:08]} 32. Be2 {[%emt 0:01:59]} Qd7 {[%emt 0:03:23]} 33. Bb5 {[%emt 0:00:23]} Qc8 {[%emt 0:00:11]} 34. Be2 {[%emt 0:00:07]} Qd7 {[%emt 0:07:02]} 35. Bb5 {[%emt 0:02:20]} 1/2-1/2